[Event "WYCC 2018 G14"]
[Site "Halkidiki"]
[Date "2018.10.21"]
[Round "2"]
[White "Desai, Nilomi"]
[Black "Toncheva, Nadya"]
[Result "0-1"]
[ECO "D20"]
[WhiteElo "1606"]
[BlackElo "2002"]
[Annotator "NA"]
[PlyCount "116"]
[EventDate "2018.10.20"]
[EventType "swiss"]
[EventCountry "GRE"]
[SourceTitle "playchess.com"]
[Source "ChessBase"]
[SourceQuality "1"]
[TimeControl "40/5400+30:1800+30"]

1. d4 {[%emt 0:00:00] Fier,A} d5 {[%emt 0:00:00]} 2. c4 {[%emt 0:00:00]} dxc4 {[%emt 0:00:00]} 3. e3 {[%emt 0:00:00]} e5 {[%emt 0:00:00]} 4. Bxc4 {[%emt 0:00:11]} exd4 {[%emt 0:00:00]} 5. exd4 {[%emt 0:00:15]} Bd6 {[%emt 0:00:00]} 6. Nc3 {[%emt 0:00:49]} Nf6 {[%emt 0:00:11]} 7. Nf3 {[%emt 0:00:09]} O-O {[%emt 0:00:05]} 8. O-O {[%emt 0:00:06]} Nc6 {[%emt 0:00:04]} 9. h3 {[%emt 0:00:49]} h6 {[%emt 0:00:10]} 10. Qc2 {[%emt 0:00:57] D20: Queen's Gambit Accepted: 3 e3 and 3 e4} Nb4 {[%emt 0:04:43]} 11. Qb1 {[%emt 0:05:14]} c6 {[%emt 0:03:40]} 12. Bxh6 {[%emt 0:01:29]} gxh6 {[%emt 0:00:35]} 13. Qg6+ {[%emt 0:00:08]} Kh8 {[%emt 0:00:02]} 14. Qxh6+ {[%emt 0:01:28]} Nh7 {[%emt 0:02:26] [#]} 15. a3 $146 {[%emt 0:12:59]} ({Predecessor:} 15. Ne4 Be7 16. Ne5 Nd5 17. f4 Bf5 {1-0 (28) Fier,A (2589)-Semcesen,D (2480) Koge 2014 EXT 2015 [Fier,A]}) 15... Nd5 {[%emt 0:01:38]} 16. Nxd5 {[%emt 0:00:46]} cxd5 {[%emt 0:00:06]} 17. Bd3 {[%emt 0:00:09]} f5 {[%emt 0:00:07]} 18. Rae1 {[%emt 0:09:17]} Qf6 {[%emt 0:01:18]} 19. Qh5 {[%emt 0:03:46]} ({White should try} 19. Qxf6+ $1 $15 Nxf6 20. Nh4) 19... Bd7 {[%emt 0:01:25]} 20. Nh4 {[%emt 0:11:18]} Kg7 {[%emt 0:07:27]} 21. g4 {[%emt 0:09:56]} Qg5 {[%emt 0:00:18]} 22. f4 {[%emt 0:09:44]} Qxh5 {[%emt 0:01:43]} 23. gxh5 {[%emt 0:00:08]} Kf6 {[%emt 0:03:30]} 24. Ng6 {[%emt 0:01:12]} Rg8 {[%emt 0:00:09]} 25. Kh1 $19 {[%emt 0:00:23]} (25. Kf2 $142) 25... Be8 {[%emt 0:01:24]} 26. Rg1 {[%emt 0:01:54]} Bxg6 {[%emt 0:00:31]} 27. Rxg6+ {[%emt 0:00:27]} Rxg6 {[%emt 0:00:05]} 28. hxg6 {[%emt 0:00:05]} Nf8 {[%emt 0:00:03]} 29. g7 {[%emt 0:00:55]} Ne6 {[%emt 0:00:08]} 30. Rg1 {[%emt 0:02:33]} Nxg7 {[%emt 0:00:21]} 31. Kg2 {[%emt 0:05:44]} Bxf4 {[%emt 0:00:20]} 32. Kf3 {[%emt 0:00:04]} Bd6 {[%emt 0:00:18]} 33. Bc2 {[%emt 0:01:00]} Ne6 {[%emt 0:00:12]} 34. Ke3 {[%emt 0:00:21]} Rh8 {[%emt 0:00:27]} 35. Rh1 {[%emt 0:00:27]} Rh4 {[%emt 0:00:09]} 36. Bb3 {[%emt 0:00:52]} Rxd4 {[%emt 0:00:12]} 37. h4 {[%emt 0:00:51]} Re4+ {[%emt 0:01:03]} 38. Kd2 {[%emt 0:00:22]} Bf4+ {[%emt 0:00:18]} 39. Kd1 {[%emt 0:00:19]} Nc5 {[%emt 0:00:16]} 40. Bc2 {[%emt 0:00:00]} Rd4+ {[%emt 0:00:00]} 41. Ke1 {[%emt 0:01:07]} Bg3+ {[%emt 0:00:13]} 42. Ke2 {[%emt 0:00:31]} Rxh4 {[%emt 0:00:05]} 43. Rf1 {[%emt 0:00:15]} f4 {[%emt 0:00:14]} 44. b4 {[%emt 0:00:43]} Rh2+ {[%emt 0:00:07]} 45. Kd1 {[%emt 0:00:04]} Ne4 {[%emt 0:00:07]} 46. Kc1 {[%emt 0:00:25]} Ke5 {[%emt 0:00:06]} 47. Rd1 {[%emt 0:01:04]} f3 {[%emt 0:00:12]} 48. Rf1 {[%emt 0:00:16]} f2 {[%emt 0:00:09]} 49. Bxe4 {[%emt 0:00:32]} Bf4+ {[%emt 0:00:07]} 50. Kd1 {[%emt 0:00:07]} dxe4 {[%emt 0:00:05]} 51. Ke2 {[%emt 0:00:14]} e3 {[%emt 0:00:38]} 52. Kf3 {[%emt 0:00:47]} Rh3+ {[%emt 0:00:05]} 53. Ke2 {[%emt 0:00:06]} Ke4 {[%emt 0:00:06]} 54. a4 {[%emt 0:00:33]} Rg3 {[%emt 0:00:08]} 55. b5 {[%emt 0:00:12]} Rg1 {[%emt 0:00:07]} 56. a5 {[%emt 0:00:38]} Rxf1 {[%emt 0:00:06]} 57. Kxf1 {[%emt 0:00:04]} Kf3 {[%emt 0:00:05]} 58. b6 {[%emt 0:00:06]} e2# {[%emt 0:00:05]} 0-1

[Event "WYCC 2018 G14"]
[Site "Halkidiki"]
[Date "2018.10.21"]
[Round "2"]
[White "Tryggestad, Linnea Garberg"]
[Black "Bellahcene, Sofia"]
[Result "0-1"]
[ECO "D45"]
[WhiteElo "1604"]
[BlackElo "1764"]
[Annotator "NA"]
[PlyCount "100"]
[EventDate "2018.10.20"]
[EventType "swiss"]
[EventCountry "GRE"]
[SourceTitle "playchess.com"]
[Source "ChessBase"]
[SourceQuality "1"]
[TimeControl "40/5400+30:1800+30"]

1. d4 {[%emt 0:00:00]} d5 {[%emt 0:00:22]} 2. c4 {[%emt 0:00:08]} e6 {[%emt 0:00:37]} 3. Nc3 {[%emt 0:01:08]} Nf6 {[%emt 0:00:12]} 4. e3 {[%emt 0:00:45]} c6 {[%emt 0:00:40]} 5. Nf3 {[%emt 0:02:03]} Nbd7 {[%emt 0:01:15]} 6. cxd5 {[%emt 0:04:26]} exd5 {[%emt 0:00:20]} 7. Bd3 {[%emt 0:02:51]} Bd6 {[%emt 0:01:13]} 8. O-O {[%emt 0:03:16]} O-O {[%emt 0:00:44]} 9. Bd2 {[%emt 0:04:20]} Re8 {[%emt 0:02:52]} 10. Qc2 {[%emt 0:02:51]} g6 {[%emt 0:03:47]} 11. Rfe1 {[%emt 0:02:18]} Bc7 {[%emt 0:04:20]} 12. Ne2 {[%emt 0:06:32]} Ne4 {[%emt 0:03:59]} 13. Ng3 {[%emt 0:02:30]} Ndf6 {[%emt 0:01:39]} 14. Bc3 {[%emt 0:01:43]} Nxg3 {[%emt 0:07:34]} 15. hxg3 {[%emt 0:01:19]} Ne4 {[%emt 0:01:02]} 16. Nd2 {[%emt 0:06:53]} f5 {[%emt 0:05:44]} 17. Nf3 {[%emt 0:08:07]} Qe7 {[%emt 0:07:03]} 18. Kh2 {[%emt 0:09:39]} h5 {[%emt 0:04:47]} 19. Bxe4 {[%emt 0:10:04]} fxe4 {[%emt 0:03:08]} 20. Ne5 {[%emt 0:04:05]} h4 {[%emt 0:05:33]} 21. gxh4 {[%emt 0:03:41]} Qxh4+ {[%emt 0:01:51]} 22. Kg1 {[%emt 0:00:08]} Bxe5 {[%emt 0:05:46]} 23. dxe5 {[%emt 0:00:19]} Re7 {[%emt 0:00:51]} 24. g3 {[%emt 0:06:35]} Qg4 {[%emt 0:05:19]} 25. Qe2 {[%emt 0:02:27]} Qxe2 {[%emt 0:01:11]} 26. Rxe2 {[%emt 0:00:06]} Bg4 {[%emt 0:00:20]} 27. f3 {[%emt 0:00:21]} Bxf3 {[%emt 0:03:07]} 28. Rh2 {[%emt 0:00:34]} Rh7 {[%emt 0:01:54]} 29. Rxh7 {[%emt 0:01:44]} Kxh7 {[%emt 0:00:08]} 30. Rc1 {[%emt 0:00:42]} g5 {[%emt 0:02:35]} 31. Bd4 {[%emt 0:02:01]} Kg6 {[%emt 0:00:54]} 32. Rc3 {[%emt 0:00:54]} Kf5 {[%emt 0:07:08]} 33. Ra3 {[%emt 0:01:29]} b6 {[%emt 0:00:45]} 34. Bxb6 {[%emt 0:01:48]} Rh8 {[%emt 0:03:45]} 35. Bd4 {[%emt 0:01:13]} Kg4 {[%emt 0:03:22]} 36. Kf2 {[%emt 0:00:41]} Rh2+ {[%emt 0:02:32]} 37. Ke1 {[%emt 0:01:49]} Re2+ {[%emt 0:01:33]} 38. Kd1 {[%emt 0:01:48]} Rxe3+ {[%emt 0:01:01]} 39. Kd2 {[%emt 0:00:49]} Rxa3 {[%emt 0:04:48]} 40. bxa3 {[%emt 0:00:00]} Kxg3 {[%emt 0:00:00]} 41. Bxa7 {[%emt 0:00:41]} Kf4 {[%emt 0:03:28]} 42. e6 {[%emt 0:05:20]} Bh5 {[%emt 0:01:09]} 43. Bc5 {[%emt 0:00:46]} Ke5 {[%emt 0:00:56]} 44. e7 {[%emt 0:00:56]} d4 {[%emt 0:00:31]} 45. a4 {[%emt 0:01:07]} Kd5 {[%emt 0:01:08]} 46. Bb6 {[%emt 0:00:45]} e3+ 47. Kc1 {[%emt 0:02:55]} c5 {[%emt 0:04:17]} 48. a5 {[%emt 0:00:22]} d3 {[%emt 0:01:36]} 49. e8=Q {[%emt 0:02:12]} d2+ {[%emt 0:00:26]} 50. Kb2 {[%emt 0:00:21]} Bxe8 {[%emt 0:00:06]} 0-1

[Event "WYCC 2018 G14"]
[Site "Halkidiki"]
[Date "2018.10.21"]
[Round "2"]
[White "Woods, Charisse"]
[Black "Guillo Longares, Cecilia"]
[Result "0-1"]
[ECO "B35"]
[WhiteElo "1511"]
[BlackElo "1998"]
[Annotator "NA"]
[PlyCount "111"]
[EventDate "2018.10.20"]
[EventType "swiss"]
[EventCountry "GRE"]
[SourceTitle "playchess.com"]
[Source "ChessBase"]
[SourceQuality "1"]
[TimeControl "40/5400+30:1800+30"]

1. e4 {[%emt 0:00:00]} c5 {[%emt 0:00:00]} 2. Nf3 {[%emt 0:00:00]} Nc6 {[%emt 0:00:00]} 3. d4 {[%emt 0:00:00]} cxd4 {[%emt 0:00:00]} 4. Nxd4 {[%emt 0:00:00]} g6 {[%emt 0:00:00]} 5. Nc3 {[%emt 0:00:04] LiveBook: 6090 Games} Bg7 {[%emt 0:00:00]} 6. Be3 {[%emt 0:00:06]} Nf6 {[%emt 0:00:00]} 7. Bc4 {[%emt 0:00:07]} O-O {[%emt 0:00:00]} 8. Bb3 {[%emt 0:00:04]} Re8 {[%emt 0:00:34] B35: Sicilian: Accelerated Dragon with 5 Nc3: main line} 9. O-O {[%emt 0:00:40]} (9. f3 e6 10. f4 d6 11. Ndb5 Bf8 12. Qf3 a6 13. Nd4 Na5 14. O-O b5 15. f5 exf5 16. exf5 {½-½ (39) Navara,D (2745)-Mamedov,R (2704) Shamkir 2018}) 9... d6 {[%emt 0:02:15]} 10. h3 {[%emt 0:00:58]} Na5 {[%emt 0:01:00]} 11. Qd3 {[%emt 0:06:21]} Nxb3 {[%emt 0:01:21]} 12. axb3 {[%emt 0:00:40]} b6 {[%emt 0:03:49]} 13. Rfd1 $146 {[%emt 0:09:38]} ({Predecessor:} 13. Nd5 Bb7 14. c4 e6 15. Nxf6+ Bxf6 16. Nb5 {½-½ (42) Ma,Q (2606)-Cornette,M (2591) Auckland 2016}) 13... Bb7 {[%emt 0:00:54]} 14. Ndb5 {[%emt 0:03:34]} a6 {[%emt 0:01:06]} 15. Nd4 {[%emt 0:00:40]} Nd7 {[%emt 0:01:23]} 16. Qe2 {[%emt 0:06:16]} b5 {[%emt 0:01:27]} 17. b4 {[%emt 0:01:33]} Nb6 {[%emt 0:05:35]} (17... Qc8 $15) 18. b3 {[%emt 0:03:55]} (18. Ndxb5 $1 $14 Rc8 19. Na3) 18... Rc8 {[%emt 0:00:41]} 19. Qd3 {[%emt 0:02:21]} Nd7 {[%emt 0:01:50]} 20. f4 {[%emt 0:02:17]} Nb8 {[%emt 0:04:05]} (20... e5 $142 21. fxe5 Bxe5) 21. Nce2 {[%emt 0:04:22]} Qc7 {[%emt 0:02:06]} 22. Rac1 {[%emt 0:01:31]} e5 {[%emt 0:05:09]} 23. Nf3 {[%emt 0:06:21]} exf4 {[%emt 0:00:17]} 24. Bxf4 {[%emt 0:01:42]} Bxe4 {[%emt 0:00:12]} 25. Qd2 {[%emt 0:00:37]} Qb7 {[%emt 0:05:07]} 26. Ned4 {[%emt 0:01:40]} Qb6 {[%emt 0:09:47]} 27. Kh1 {[%emt 0:01:35]} d5 {[%emt 0:02:05]} 28. c3 {[%emt 0:06:26]} Nc6 {[%emt 0:04:01]} 29. Ne2 {[%emt 0:02:48]} Qd8 {[%emt 0:07:51]} 30. Ng3 {[%emt 0:02:16]} Qe7 {[%emt 0:04:01]} 31. Re1 {[%emt 0:02:31]} Qb7 {[%emt 0:02:03]} 32. Ng5 {[%emt 0:01:39]} Nd8 {[%emt 0:02:39]} 33. Re3 {[%emt 0:03:44]} f5 {[%emt 0:04:31]} 34. h4 {[%emt 0:02:58]} Ne6 {[%emt 0:03:14]} 35. Nxe6 {[%emt 0:01:09]} Rxe6 {[%emt 0:00:19]} 36. h5 $2 {[%emt 0:01:34]} (36. Ne2 $17 {is a better defense.}) 36... Qe7 {[%emt 0:03:06]} 37. Nxe4 {[%emt 0:00:48]} dxe4 {[%emt 0:00:29]} 38. h6 {[%emt 0:00:46]} Rd8 {[%emt 0:01:30]} 39. Qf2 {[%emt 0:01:10]} Bf6 {[%emt 0:01:31]} 40. Rg1 {[%emt 0:00:00]} g5 {[%emt 0:00:00]} 41. Rg3 {[%emt 0:06:11]} Kh8 {[%emt 0:05:45]} 42. Bc1 {[%emt 0:01:33]} f4 {[%emt 0:00:49]} 43. Rh3 {[%emt 0:01:19]} e3 {[%emt 0:06:13]} 44. Qe2 {[%emt 0:01:02]} Bxc3 {[%emt 0:00:59]} 45. Rh5 {[%emt 0:03:05]} Qe8 {[%emt 0:07:12]} 46. Bb2 {[%emt 0:03:11]} Be5 {[%emt 0:00:46]} 47. Bc1 {[%emt 0:02:24]} Rdd6 {[%emt 0:00:36]} 48. Rd1 {[%emt 0:00:43]} Rxh6 {[%emt 0:00:50]} 49. Rxh6 {[%emt 0:00:46]} Rxh6+ {[%emt 0:00:04]} 50. Kg1 {[%emt 0:00:12]} Rd6 {[%emt 0:02:15]} 51. Rf1 {[%emt 0:01:50]} Kg7 {[%emt 0:03:35]} 52. g3 {[%emt 0:01:24]} Rh6 {[%emt 0:02:11]} 53. Qg4 {[%emt 0:02:31]} e2 {[%emt 0:03:27]} 54. Re1 {[%emt 0:01:31]} Bd4+ {[%emt 0:00:38]} 55. Kg2 {[%emt 0:00:59]} Qe4+ {[%emt 0:00:10]} 56. Qf3 {[%emt 0:03:38]} 0-1

[Event "WYCC 2018 G14"]
[Site "Halkidiki"]
[Date "2018.10.21"]
[Round "2"]
[White "Sadka Darrell, Daria"]
[Black "Brunner, Sophia"]
[Result "0-1"]
[ECO "C05"]
[WhiteElo "1405"]
[BlackElo "1812"]
[Annotator "NA"]
[PlyCount "96"]
[EventDate "2018.10.20"]
[EventType "swiss"]
[EventCountry "GRE"]
[SourceTitle "playchess.com"]
[Source "ChessBase"]
[SourceQuality "1"]
[TimeControl "40/5400+30:1800+30"]

1. e4 {[%emt 0:04:07]} e6 {[%emt 0:00:00]} 2. d4 {[%emt 0:02:19]} d5 {[%emt 0:00:00]} 3. Nd2 {[%emt 0:00:09]} Nf6 {[%emt 0:00:12]} 4. e5 {[%emt 0:01:04]} Nfd7 {[%emt 0:00:12]} 5. Bd3 {[%emt 0:01:10]} c5 {[%emt 0:01:50]} 6. c3 {[%emt 0:00:37]} Nc6 {[%emt 0:01:43]} 7. Ngf3 {[%emt 0:01:05]} Qb6 {[%emt 0:04:33]} 8. O-O {[%emt 0:05:01]} cxd4 {[%emt 0:04:41]} 9. cxd4 {[%emt 0:00:45]} Nxd4 {[%emt 0:00:44]} 10. Nxd4 {[%emt 0:00:44]} Qxd4 {[%emt 0:00:05]} 11. Nf3 {[%emt 0:00:08]} Qb6 {[%emt 0:10:24]} 12. Qa4 {[%emt 0:17:09]} a6 {[%emt 0:19:57]} 13. a3 {[%emt 0:27:18]} g6 {[%emt 0:10:18]} 14. Bd2 {[%emt 0:01:54]} Qc6 {[%emt 0:06:44]} 15. Qf4 {[%emt 0:05:00]} Bg7 {[%emt 0:16:28]} 16. Be3 {[%emt 0:08:36]} b6 {[%emt 0:00:40]} 17. Bd4 {[%emt 0:04:27]} O-O {[%emt 0:03:42]} 18. Rac1 {[%emt 0:01:42]} Nc5 {[%emt 0:03:21]} 19. Qe3 {[%emt 0:00:37]} Qd7 {[%emt 0:02:42]} 20. Bxc5 {[%emt 0:00:45]} bxc5 {[%emt 0:00:01]} 21. Rxc5 {[%emt 0:00:16]} Bb7 {[%emt 0:00:20]} 22. Nd4 {[%emt 0:01:38]} Rfc8 {[%emt 0:00:30]} 23. Rxc8+ {[%emt 0:00:39]} Rxc8 {[%emt 0:00:39]} 24. f4 {[%emt 0:00:24]} Bf8 {[%emt 0:02:51]} 25. Qd2 {[%emt 0:05:52]} Bc5 {[%emt 0:01:35]} 26. Bb1 {[%emt 0:00:37]} Qa4 {[%emt 0:01:41]} 27. b4 {[%emt 0:01:41]} Bb6 {[%emt 0:01:37]} 28. Kh1 {[%emt 0:01:20]} Qxa3 {[%emt 0:00:28]} 29. f5 {[%emt 0:01:37]} Bxd4 {[%emt 0:02:41]} 30. fxg6 {[%emt 0:03:21]} Be3 {[%emt 0:02:54]} 31. gxf7+ {[%emt 0:02:11]} Kf8 {[%emt 0:00:10]} 32. Qe2 {[%emt 0:00:57]} Rc1 {[%emt 0:00:20]} 33. Bd3 {[%emt 0:00:30]} Rxf1+ {[%emt 0:00:12]} 34. Qxf1 {[%emt 0:00:09]} Qc1 {[%emt 0:00:11]} 35. Qxc1 {[%emt 0:00:25]} Bxc1 {[%emt 0:00:01]} 36. Bxh7 {[%emt 0:00:13]} Kxf7 {[%emt 0:00:09]} 37. h4 {[%emt 0:00:19]} Bf4 {[%emt 0:01:05]} 38. g4 {[%emt 0:00:17]} Bxe5 {[%emt 0:00:55]} 39. g5 {[%emt 0:00:20]} Bg3 {[%emt 0:01:15]} 40. h5 {[%emt 0:00:00]} Bf4 {[%emt 0:00:00]} 41. g6+ {[%emt 0:02:10]} Kg7 {[%emt 0:01:15]} 42. Kg2 {[%emt 0:00:05]} Bd2 {[%emt 0:01:22]} 43. Kf3 {[%emt 0:00:32]} Bxb4 {[%emt 0:00:26]} 44. Kf4 {[%emt 0:00:10]} Bc3 {[%emt 0:00:15]} 45. Kg5 {[%emt 0:00:50]} Bd2+ {[%emt 0:00:05]} 46. Kg4 {[%emt 0:00:13]} a5 {[%emt 0:00:05]} 47. h6+ {[%emt 0:00:26]} Bxh6 {[%emt 0:00:19]} 48. Kh5 {[%emt 0:00:05]} a4 {[%emt 0:00:30]} 0-1

[Event "WYCC 2018 G14"]
[Site "Halkidiki"]
[Date "2018.10.21"]
[Round "2"]
[White "Zrmanovska Mihaela"]
[Black "Moracchini, Margaux"]
[Result "0-1"]
[ECO "B75"]
[WhiteElo "1354"]
[BlackElo "1838"]
[Annotator "NA"]
[PlyCount "124"]
[EventDate "2018.10.20"]
[EventType "swiss"]
[EventCountry "GRE"]
[SourceTitle "playchess.com"]
[Source "ChessBase"]
[SourceQuality "1"]
[TimeControl "40/5400+30:1800+30"]

1. e4 {[%emt 0:00:00]} c5 {[%emt 0:00:00]} 2. Nf3 {[%emt 0:00:26]} d6 {[%emt 0:00:00]} 3. d4 {[%emt 0:00:22]} cxd4 {[%emt 0:00:00]} 4. Nxd4 {[%emt 0:00:25]} Nf6 {[%emt 0:00:01]} 5. Nc3 {[%emt 0:00:29]} g6 {[%emt 0:00:16]} 6. Be3 {[%emt 0:00:23]} Bg7 {[%emt 0:00:05]} 7. f3 {[%emt 0:00:26]} a6 {[%emt 0:00:25]} 8. Qd2 {[%emt 0:03:19]} h5 {[%emt 0:00:13] B75: Sicilian Dragon: Yugoslav Attack, Miscellaneous} (8... b5 9. a4 b4 10. Nd5 Nxd5 11. exd5 Bb7 12. Bc4 Nd7 13. a5 Nf6 14. Ne2 O-O 15. Ra4 Rc8 16. b3 Rc5 17. Rxb4 Rxd5 18. Bxd5 Bxd5 {½-½ (61) Kramnik,V (2808)-Nakamura,H (2785) Stavanger 2017}) 9. O-O-O {[%emt 0:05:18]} Nbd7 {[%emt 0:04:05]} 10. Bc4 {[%emt 0:08:02]} b5 {[%emt 0:03:59]} 11. Bb3 {[%emt 0:04:48] LiveBook: 10 Games} ({But not} 11. Nc6 Qc7 $17) 11... Bb7 {[%emt 0:03:15]} 12. a3 {[%emt 0:04:35]} Rc8 {[%emt 0:01:46]} 13. Rdf1 $146 {[%emt 0:05:11]} ({Predecessor:} 13. Kb1 Ne5 14. Rhe1 O-O 15. Bh6 Bxh6 16. Qxh6 Rxc3 17. bxc3 {1-0 (30) Vescovi,G (2622)-Kudrin,S (2553) Philadelphia 2006}) 13... Ne5 {[%emt 0:10:37]} 14. Nde2 {[%emt 0:11:09]} Nc4 {[%emt 0:05:11]} 15. Bxc4 {[%emt 0:01:32]} Rxc4 {[%emt 0:00:10]} 16. Nf4 {[%emt 0:03:45]} b4 {[%emt 0:17:21]} 17. axb4 {[%emt 0:10:49]} Rxb4 {[%emt 0:00:30]} 18. Nd3 {[%emt 0:02:21]} Rc4 {[%emt 0:00:53]} 19. h3 {[%emt 0:05:31]} Qa5 {[%emt 0:22:53]} 20. Kb1 {[%emt 0:03:48]} Nd7 {[%emt 0:04:21]} 21. Na2 {[%emt 0:09:22]} Qb5 {[%emt 0:03:24]} 22. Rd1 {[%emt 0:06:01]} Ne5 {[%emt 0:07:56]} 23. Nc3 {[%emt 0:03:47]} Qd7 {[%emt 0:00:05]} 24. Nxe5 {[%emt 0:00:53]} Bxe5 {[%emt 0:00:09]} 25. Nd5 {[%emt 0:02:10]} Qb5 {[%emt 0:04:50]} 26. b3 {[%emt 0:01:26]} Bxd5 {[%emt 0:01:17]} 27. Qxd5 {[%emt 0:00:32]} Qxd5 {[%emt 0:00:21]} 28. Rxd5 {[%emt 0:00:12]} Rc3 {[%emt 0:01:29]} 29. Bd4 {[%emt 0:00:36]} Bxd4 {[%emt 0:00:05]} 30. Rxd4 {[%emt 0:00:04]} h4 {[%emt 0:01:35]} 31. Rb4 {[%emt 0:01:26]} Rh5 {[%emt 0:00:45]} 32. Kc1 {[%emt 0:01:11]} Rhc5 {[%emt 0:01:27]} 33. Rc4 {[%emt 0:02:18]} R5xc4 {[%emt 0:00:14]} 34. bxc4 {[%emt 0:00:12]} Rxc4 {[%emt 0:00:02]} 35. Kd2 {[%emt 0:00:18]} Kd7 {[%emt 0:00:09]} 36. Ra1 {[%emt 0:00:24]} Rc5 {[%emt 0:00:34]} 37. Kd3 {[%emt 0:02:08]} Rg5 {[%emt 0:00:40]} 38. Rg1 {[%emt 0:00:24]} Kc6 {[%emt 0:00:17]} 39. Kc4 {[%emt 0:00:37]} a5 {[%emt 0:01:04]} 40. Kb3 {[%emt 0:00:00]} Kb5 {[%emt 0:00:00]} 41. c4+ {[%emt 0:07:00]} Kc5 {[%emt 0:02:08]} 42. Kc3 {[%emt 0:00:11]} a4 {[%emt 0:01:46]} 43. Ra1 {[%emt 0:01:48]} Rxg2 {[%emt 0:00:08]} 44. Rxa4 {[%emt 0:00:09]} Rg3 {[%emt 0:00:28]} 45. Ra7 {[%emt 0:00:28]} Rxf3+ {[%emt 0:00:08]} 46. Kd2 {[%emt 0:00:10]} Kxc4 {[%emt 0:00:56]} 47. Rxe7 {[%emt 0:00:18]} Kd4 {[%emt 0:00:25]} 48. Ke2 {[%emt 0:00:21]} Rxh3 {[%emt 0:01:54]} 49. Rxf7 {[%emt 0:00:29]} Rg3 {[%emt 0:00:36]} 50. Rh7 {[%emt 0:00:56]} g5 {[%emt 0:00:23]} 51. Rh6 {[%emt 0:00:20]} Kxe4 {[%emt 0:01:29]} 52. Rxd6 {[%emt 0:00:26]} Rg2+ {[%emt 0:00:05]} 53. Kf1 {[%emt 0:00:12]} Ra2 {[%emt 0:00:09]} 54. Re6+ {[%emt 0:00:40]} Kf3 {[%emt 0:00:16]} 55. Rf6+ {[%emt 0:00:12]} Kg3 {[%emt 0:00:11]} 56. Rf5 {[%emt 0:00:43]} g4 {[%emt 0:00:08]} 57. Rb5 {[%emt 0:00:56]} Ra1+ {[%emt 0:01:33]} 58. Ke2 {[%emt 0:00:11]} h3 {[%emt 0:00:14]} 59. Rb3+ {[%emt 0:00:20]} Kg2 {[%emt 0:00:08]} 60. Rb2 {[%emt 0:00:40]} h2 {[%emt 0:00:41]} 61. Ke3+ {[%emt 0:00:28]} Kg1 {[%emt 0:00:31]} 62. Kf4 {[%emt 0:01:25]} h1=Q {[%emt 0:00:19]} 0-1

[Event "WYCC 2018 G14"]
[Site "Halkidiki"]
[Date "2018.10.21"]
[Round "2"]
[White "Putter, Nicola"]
[Black "Anghel, Maria"]
[Result "0-1"]
[ECO "B23"]
[WhiteElo "1351"]
[BlackElo "1801"]
[Annotator "NA"]
[PlyCount "90"]
[EventDate "2018.10.20"]
[EventType "swiss"]
[EventCountry "GRE"]
[SourceTitle "playchess.com"]
[Source "ChessBase"]
[SourceQuality "1"]
[TimeControl "40/5400+30:1800+30"]

1. e4 {[%emt 0:00:00]} c5 {[%emt 0:00:00]} 2. Nc3 {[%emt 0:00:00]} e6 {[%emt 0:00:00]} 3. f4 {[%emt 0:03:07]} Nc6 {[%emt 0:00:17]} 4. Bb5 {[%emt 0:01:04]} Nge7 {[%emt 0:01:19]} 5. a3 {[%emt 0:03:19]} a6 {[%emt 0:01:46]} 6. Bxc6 {[%emt 0:01:36]} Nxc6 {[%emt 0:00:25]} 7. Nf3 {[%emt 0:01:21]} d5 {[%emt 0:08:59]} 8. d3 {[%emt 0:04:03]} Be7 {[%emt 0:05:47]} 9. O-O {[%emt 0:03:38]} O-O {[%emt 0:01:06]} 10. Qe1 {[%emt 0:07:46]} b5 {[%emt 0:06:36]} 11. e5 {[%emt 0:02:57]} f6 {[%emt 0:10:58]} 12. Ne2 {[%emt 0:04:29]} Bb7 {[%emt 0:07:38]} 13. d4 {[%emt 0:03:35]} f5 {[%emt 0:16:15]} 14. Be3 {[%emt 0:03:13]} c4 {[%emt 0:05:38]} 15. b4 {[%emt 0:04:26]} cxb3 {[%emt 0:02:59]} 16. cxb3 {[%emt 0:00:22]} b4 {[%emt 0:09:09]} 17. Bd2 {[%emt 0:03:31]} bxa3 {[%emt 0:01:25]} 18. b4 {[%emt 0:01:16]} Qb6 {[%emt 0:01:56]} 19. Rxa3 {[%emt 0:00:40]} Nxb4 {[%emt 0:03:11]} 20. Rb3 {[%emt 0:01:13]} a5 {[%emt 0:01:08]} 21. Qa1 {[%emt 0:02:08]} Ba6 {[%emt 0:02:31]} 22. Rf2 {[%emt 0:02:04]} Bc4 {[%emt 0:02:05]} 23. Rb2 {[%emt 0:01:34]} Qa6 {[%emt 0:01:59]} 24. Bxb4 {[%emt 0:02:03]} Bxb4 {[%emt 0:02:02]} 25. Ne1 {[%emt 0:04:59]} Rab8 {[%emt 0:03:30]} 26. Nc2 {[%emt 0:00:55]} Bxe2 {[%emt 0:02:34]} 27. Nxb4 {[%emt 0:00:09]} axb4 {[%emt 0:01:41]} 28. Ra2 {[%emt 0:01:38]} Qc4 {[%emt 0:00:27]} 29. Rfxe2 {[%emt 0:00:17]} b3 {[%emt 0:00:33]} 30. Rad2 {[%emt 0:01:56]} Rfc8 {[%emt 0:00:34]} 31. Qb1 {[%emt 0:00:54]} Ra8 {[%emt 0:00:28]} 32. Rd3 {[%emt 0:01:56]} Rcb8 {[%emt 0:00:30]} 33. Ree3 {[%emt 0:01:26]} b2 {[%emt 0:00:28]} 34. Rc3 {[%emt 0:05:45]} Ra1 {[%emt 0:00:31]} 35. Rxc4 {[%emt 0:00:59]} Rxb1+ {[%emt 0:00:09]} 36. Kf2 {[%emt 0:00:19]} dxc4 {[%emt 0:00:11]} 37. d5 {[%emt 0:01:52]} exd5 {[%emt 0:00:14]} 38. e6 {[%emt 0:00:06]} Rc1 {[%emt 0:00:46]} 39. e7 {[%emt 0:00:16]} Kf7 {[%emt 0:00:22]} 40. Kg3 {[%emt 0:00:00]} b1=Q {[%emt 0:00:00]} 41. Kh4 {[%emt 0:01:26]} Re1 {[%emt 0:00:59]} 42. Rxe1 {[%emt 0:01:19]} Qxe1+ {[%emt 0:00:12]} 43. Kg5 {[%emt 0:00:19]} h6+ {[%emt 0:00:29]} 44. Kh5 {[%emt 0:00:09]} g6+ {[%emt 0:00:15]} 45. Kxh6 {[%emt 0:00:12]} Qh4# {[%emt 0:00:14]} 0-1

[Event "WYCC 2018 G14"]
[Site "Halkidiki"]
[Date "2018.10.21"]
[Round "2"]
[White "Beslija, Hana"]
[Black "Sleurs, Juliette"]
[Result "0-1"]
[ECO "C45"]
[WhiteElo "1163"]
[BlackElo "1812"]
[Annotator "NA"]
[PlyCount "34"]
[EventDate "2018.10.20"]
[EventType "swiss"]
[EventCountry "GRE"]
[SourceTitle "playchess.com"]
[Source "ChessBase"]
[SourceQuality "1"]
[TimeControl "40/5400+30:1800+30"]

1. e4 {[%emt 0:00:00]} e5 {[%emt 0:00:00]} 2. Nf3 {[%emt 0:00:00]} Nc6 {[%emt 0:00:00]} 3. d4 {[%emt 0:00:00]} exd4 {[%emt 0:00:00]} 4. Nxd4 {[%emt 0:00:00]} Bc5 $14 {[%emt 0:00:10]} 5. Be3 {[%emt 0:00:03]} Qf6 {[%emt 0:00:21]} 6. c3 {[%emt 0:00:08]} Nge7 {[%emt 0:00:22]} 7. f4 {[%emt 0:02:20]} Nxd4 {[%emt 0:29:19]} 8. cxd4 {[%emt 0:00:21]} Bb4+ {[%emt 0:00:29]} 9. Nc3 {[%emt 0:00:47]} Qc6 {[%emt 0:06:37]} 10. d5 {[%emt 0:05:57]} Bxc3+ {[%emt 0:00:53]} 11. Kf2 {[%emt 0:01:05]} Qg6 {[%emt 0:11:17]} 12. f5 {[%emt 0:00:14]} Nxf5 {[%emt 0:03:46]} 13. bxc3 Nxe3 {[%emt 0:01:33]} 14. Kxe3 {[%emt 0:02:42]} d6 {[%emt 0:02:33]} 15. Rb1 {[%emt 0:01:56]} O-O {[%emt 0:01:29]} 16. Qa4 {[%emt 0:03:20]} f5 {[%emt 0:10:16]} 17. e5 {[%emt 0:03:15]} f4+ {[%emt 0:04:27]} 0-1